Cogmind - Beta 16 @@@ ROGUE MODE // 2025.11.16 @ 16:07:50 Player: Mozco Result: Destroyed by Y-45 Defender with Beam Rifle Performance ------------- Evolutions (2) 1000 Regions Visited (3) 600 Robots Destroyed (18) 90 Value Destroyed (526) 526 Prototype IDs (3) 60 Alien Tech Used (0) 0 Bonus (470) 470 TOTAL SCORE: 2746 Bonus ------- Pacifist 470 Cogmind --------- Core Integrity 0/550 Matter 285/300 Energy 16/100 System Corruption 15% Temperature Cool (13) Movement Hovering (46) Location -8/Materials Parts ------- > --- POWER (1) -------- (None) > --- PROPULSION (4) --- Aerolev Unit Aerolev Unit Aerolev Unit Aerolev Unit > --- UTILITY (4) ------ Medium Storage Unit Machine Analyzer Improved Terrain Scan Processor System Shield > --- WEAPON (2) ------- Mining Claw > --- INVENTORY (10) --- Carbon-fiber Leg VSS Leg Aerolev Unit Aerolev Unit Aerolev Unit Aerolev Unit Heat Sink Large Storage Unit Hardened Medium Armor Plating Shield Generator Peak State ------------ > --- POWER ------------ Light Ion Engine > --- PROPULSION ------- Aerolev Unit Aerolev Unit Aerolev Unit Aerolev Unit > --- UTILITY ---------- Medium Storage Unit Machine Analyzer Improved Terrain Scan Processor Reflective Plating > --- WEAPON ----------- Mining Claw > --- INVENTORY -------- Aluminum Leg Aluminum Leg Carbon-fiber Leg VSS Leg Aerolev Unit Aerolev Unit Heat Sink Large Storage Unit Shield Generator [Rating: 30] Favorites ----------- Power Ion Engine Engine Ion Engine Propulsion Aerolev Unit Leg Aluminum Leg Hover Unit Aerolev Unit Utility Medium Storage Unit Device Terrain Scanner Storage Medium Storage Unit Processor Improved Terrain Scan Processor Hackware System Shield Protection Reflective Plating Weapon Mining Claw Impact Weapon Maul Slashing Weapon Mining Claw Build | -11 -10 -9 -8 ------- Run | Yrd Mat Mat Mat Slots Evolved 4 | . . 2 2 Power . | . . . . Propulsion 2 | . . 2 . Utility 2 | . . . 2 Weapon . | . . . . Parts Attached 35 | 1 4 7 23 Power 4 | . 1 . 3 Engine 4 | . 1 . 3 Core . | . . . . Reactor . | . . . . Propulsion 19 | . 2 4 13 Treads . | . . . . Leg 7 | . . . 7 Wheel . | . . . . Hover 12 | . 2 4 6 Flight . | . . . . Utility 10 | 1 1 2 6 Device 1 | . . . 1 Storage 2 | 1 . 1 . Processor 2 | . . . 2 Hackware 1 | . . . 1 Protection 4 | . 1 1 2 Artifact . | . . . . Weapon 2 | . . 1 1 Energy Gun . | . . . . Energy Cannon . | . . . . Ballistic Gun . | . . . . Ballistic Cannon . | . . . . Launcher . | . . . . Special Weapon . | . . . . Impact Weapon 1 | . . 1 . Slashing Weapon 1 | . . . 1 Piercing Weapon . | . . . . Special Melee Weapon . | . . . . Unidentified Prototypes 1 | . . . 1 Corrupted Parts 2 | . . . 2 System Corruption 15 | . . . 15 Parts Lost 18 | . . 3 15 Power 4 | . . 1 3 Propulsion 9 | . . 2 7 Utility 4 | . . . 4 Weapon 1 | . . . 1 Highest Loss Streak 4 | . . 2 4 To Critical Strikes . | . . . . Average Backups 6 | 3 6 7 5 Power . | 1 1 2 . Propulsion 2 | 1 4 3 2 Utility 2 | . . 2 3 Weapon . | . . . . Tool/Special . | . . . . Unused Backups 9 | . . . 9 Power . | . . . . Propulsion 5 | . . . 5 Utility 4 | . . . 4 Weapon . | . . . . Tool/Special . | . . . . Average Slot Usage (%) 72 | . 36 77 76 Engine 5 | . 8 10 4 Leg 11 | . . . 15 Hover 21 | . 16 42 16 Device 2 | . . . 3 Storage 9 | . 7 11 9 Processor 7 | . . . 10 Protection 8 | . 4 11 8 Impact Weapon 1 | . . 1 1 Slashing Weapon 4 | . . . 6 Peak Build Rating 30 | 1 8 14 30 Average Rating 16 | . 4 10 19 On Entrance 5 | . . 8 13 Avg Prop Armor Cover (%) 10 | . . . 10 Naked Turns 32 | . 32 . . Heaviest Build 26 | 5 11 25 26 Greatest Support 47 | 3 14 27 47 Greatest Overweight (x) 5 | 1 . 1 5 Average Overweight (x) . | . . . . Largest Inventory Capacity 10 | 8 8 10 10 Average Capacity 9 | 5 6 9 10 Most Carried 10 | 5 8 9 10 Average Carried 6 | 3 6 7 5 Final Capacity 10 | 5 8 10 10 Final Carried 10 | 5 8 7 10 Class Distribution -------------------- 100% | Mutant Dominant Class ---------------- Mutant | -10/Materials Mutant | -9/Materials Mutant | -8/Materials Resources | -11 -10 -9 -8 ----------- Run | Yrd Mat Mat Mat Matter Collected 550 | 210 40 74 226 Remotely . | . . . . Salvage Created 735 | . . . 735 Parts 34 | . . . 34 Haulers Intercepted 3 | . . . 3 Recyclers Shooed . | . . . . Parts Field Recycled . | . . . . Retrieved Matter . | . . . . Parts Self-Destructed . | . . . . Prevented . | . . . . Parts Restored . | . . . . Kills | -11 -10 -9 -8 ------- Run | Yrd Mat Mat Mat Combat Hostiles Destroyed 12 | . . . 12 Melee 8 | . . . 8 Classes Destroyed 8 | . . . 8 Builder 1 | . . . 1 Tunneler 1 | . . . 1 Hauler 3 | . . . 3 Mechanic 1 | . . . 1 Swarmer 2 | . . . 2 Grunt 6 | . . . 6 Sentry 3 | . . . 3 Hunter 1 | . . . 1 Best Kill Streak 3 | . . . 3 Combat Bots Only 3 | . . . 3 Max Kills in Single Turn 1 | . . . 1 Gunslinging . | . . . . Exploded . | . . . . Melee 1 | . . . 1 Uniques/NPCs Destroyed . | . . . . Combat | -11 -10 -9 -8 -------- Run | Yrd Mat Mat Mat Hostile Shots Fired 267 | . 3 75 189 Missed 87 | . 2 33 52 Hits 180 | . 1 42 137 Projectile 180 | . 1 42 137 Critical Strikes 9 | . . . 9 Damage Taken 2366 | . 11 405 1950 Core 630 | . 9 61 560 Absorbed by Shields . | . . . . Redirected to Shielding 4 | . 2 2 . Ignored by Resistances 21 | . . . 21 Core Remaining (%) 93 | 100 96 84 . Volleys Fired . | . . . . Largest . | . . . . Hottest . | . . . . Shots Fired . | . . . . Gun . | . . . . Cannon . | . . . . Launcher . | . . . . Special . | . . . . Kinetic . | . . . . Thermal . | . . . . Explosive . | . . . . Electromagnetic . | . . . . Robot Hit Streak . | . . . . Robot Miss Streak . | . . . . Penetration Max . | . . . . Secondary Targets . | . . . . Shots Hit Robots 62 | . . . 62 Core Hits 16 | . . . 16 Critical Kills . | . . . . Critical Parts Destroyed 5 | . . . 5 Critical Strikes 5 | . . . 5 Smash 5 | . . . 5 Melee Attacks 89 | . . 5 84 Impact 31 | . . 5 26 Slashing 58 | . . . 58 Piercing . | . . . . Sneak Attacks 7 | . . . 7 Combat Hostiles 1 | . . . 1 Follow-up Attacks . | . . . . Damage Inflicted 1881 | . . . 1881 Guns . | . . . . Cannons . | . . . . Explosions . | . . . . Melee 1881 | . . . 1881 Ramming . | . . . . Kinetic . | . . . . Thermal . | . . . . Explosive . | . . . . Electromagnetic . | . . . . Impact 894 | . . . 894 Slashing 987 | . . . 987 Piercing . | . . . . Highest Corruption 15 | . . . 15 Average Corruption 11 | . . . 11 Corruption Purged . | . . . . Corruption Blocked . | . . . . Effects 18 | . . . 18 Message Errors 6 | . . . 6 Matter Fused 3 | . . . 3 Heat Flow Errors 1 | . . . 1 Energy Discharges 2 | . . . 2 Parts Rejected 3 | . . . 3 Data Loss (minor) 1 | . . . 1 Data Loss (major) 2 | . . . 2 Overload Shots . | . . . . Overflow Damage 248 | . . . 248 Projectiles . | . . . . Explosions . | . . . . Melee 248 | . . . 248 Knockbacks 4 | . . . 4 Impact 4 | . . . 4 Kinetic . | . . . . Secondary . | . . . . Self-Inflicted Damage . | . . . . Shots . | . . . . Rammed . | . . . . Targets Rammed . | . . . . Kicked . | . . . . Crushed . | . . . . Highest Temperature 249 | . . 1 249 Average Temperature 70 | . . 1 74 Received Heat Transfer 1023 | . 6 90 927 Siege Activations . | . . . . Martial Activations . | . . . . Shielding Activations . | . . . . Robots Disrupted . | . . . . Combat Hostiles . | . . . . Robots Corrupted 5 | . . . 5 Combat Hostiles 4 | . . . 4 Parts Fried 9 | . . . 9 Impact Corruptions 12 | . . . 12 Robots Melted . | . . . . Combat Hostiles . | . . . . Parts Melted . | . . . . Heat Transferred . | . . . . Parts Sabotaged . | . . . . Parts Stolen . | . . . . Parts Stripped . | . . . . Power Chain Reactions . | . . . . Alert | -11 -10 -9 -8 ------- Run | Yrd Mat Mat Mat Maximum Alert Level . | . . . . Low Security (%) 100 | 100 100 100 100 Level 1 . | . . . . Level 2 . | . . . . Level 3 . | . . . . Level 4 . | . . . . Level 5 . | . . . . High Security . | . . . . Max Security . | . . . . Peak Influence 116 | . 5 95 116 Initial 33 | . . . 33 Average 30 | . 1 16 37 Influence Increases 658 | . 10 150 498 Destroy 0b10 Robot/C 240 | . . . 240 Destroy 0b10 Robot/NC 30 | . . . 30 Destroy Leader 66 | . . . 66 Successful Hack 36 | . 10 . 26 Destroy Structure 1 | . . . 1 Partial Spotted 15 | . . 15 . Lose Combat Pursuer 270 | . . 135 135 Influence Decreases 596 | . 10 70 516 Entered New Map 47 | . . . 47 Time Decay 373 | . 10 45 318 Lost Part 166 | . . 25 141 Lost Ally 10 | . . . 10 Squads Dispatched 5 | . 1 2 2 Investigation . | . . . . Extermination . | . . . . Reinforcement 5 | . 1 2 2 Assault . | . . . . Garrison . | . . . . Intercept . | . . . . Searches Triggered . | . . . . Construction Impeded . | . . . . Haulers Reinforced . | . . . . Active Scanning Responses . | . . . . Cargo Convoy Interrupts . | . . . . Stealth | -11 -10 -9 -8 --------- Run | Yrd Mat Mat Mat Distress Signals 6 | . . 2 4 Communications Jammed . | . . . . Distress Signals . | . . . . Times Spotted 66 | . 7 23 36 Peak Tracking Total 18 | . 8 18 11 Tactical Retreats 9 | . . 3 6 Traps | -11 -10 -9 -8 ------- Run | Yrd Mat Mat Mat Traps Triggered . | . . . . Indirectly . | . . . . Trap Hack Attempts . | . . . . Triggered . | . . . . Disarmed . | . . . . Reprogrammed . | . . . . Reused . | . . . . Traps Extracted . | . . . . Installed . | . . . . Triggered . | . . . . Machines | -11 -10 -9 -8 ---------- Run | Yrd Mat Mat Mat Machines Disabled . | . . . . Max in Single Turn . | . . . . Garrison Access 1 | . . . 1 Machines Repaired . | . . . . Machines Dismantled . | . . . . Machines Sabotaged . | . . . . Overloaded Fab Kills . | . . . . Hacking | -11 -10 -9 -8 --------- Run | Yrd Mat Mat Mat Machines Accessed 10 | . 2 2 6 Terminals 9 | . 2 2 5 Fabricators . | . . . . Repair Stations . | . . . . Recycling Units . | . . . . Scanalyzers . | . . . . Garrison Access 1 | . . . 1 Total Hacks 30 | . 8 5 17 Successful 11 | . 3 1 7 Failed 19 | . 5 4 10 Catastrophic 4 | . . 2 2 Database Lockouts . | . . . . Manual 18 | . 7 1 10 Terminals 29 | . 8 5 16 Fabricators . | . . . . Repair Stations . | . . . . Recycling Units . | . . . . Scanalyzers . | . . . . Garrison Access 1 | . . . 1 Terminal Hacks 7 | . 2 1 4 Robot Analysis 4 | . 1 . 3 Prototype ID Bank 1 | . . . 1 Zone Layout 2 | . 1 1 . Fabricator Hacks . | . . . . Repair Station Hacks . | . . . . Recycling Unit Hacks . | . . . . Scanalyzer . | . . . . Garrison Access Hacks 1 | . . . 1 Seal Access 1 | . . . 1 Unauthorized Hacks 3 | . 1 . 2 Terminals 3 | . 1 . 2 Assimilate 1 | . . . 1 Botnet 2 | . 1 . 1 Fabricators . | . . . . Repair Stations . | . . . . Recycling Units . | . . . . Scanalyzers . | . . . . Garrison Access . | . . . . Data Cores Recovered . | . . . . Used . | . . . . Hacking Detections 9 | . 2 2 5 Full Trace Events . | . . . . Feedback Events . | . . . . Feedback Blocked . | . . . . Robot Schematics Acquired . | . . . . Robots Built . | . . . . Authchips . | . . . . Time . | . . . . Total Robot Build Rating . | . . . . Part Schematics Acquired . | . . . . Parts Built . | . . . . Authchips . | . . . . Time . | . . . . Total Part Build Rating . | . . . . Part Studies Acquired . | . . . . Parts Repaired . | . . . . Time . | . . . . Parts Recycled . | . . . . Recycled Matter . | . . . . Retrieved Matter . | . . . . Retrieved Components . | . . . . Parts Scanalyzed . | . . . . Part Schematics Acquired . | . . . . Parts Damaged . | . . . . Bothacking | -11 -10 -9 -8 ------------ Run | Yrd Mat Mat Mat Used RIF Installer . | . . . . Robots Hacked . | . . . . Non-combat . | . . . . Combat . | . . . . Robot Hacks Applied . | . . . . Relay Couplers Released . | . . . . Fabnet Peak Effective % . | . . . . Robots Rewired . | . . . . Allies Hacked . | . . . . Hacks Repelled . | . . . . Allies | -11 -10 -9 -8 -------- Run | Yrd Mat Mat Mat Total Allies 1 | . . . 1 Largest Group 1 | . . . 1 Highest-Rated Group 10 | . . . 10 Highest-Rated Ally 10 | . . . 10 Total Orders . | . . . . Ally Attacks . | . . . . Total Damage . | . . . . Kills . | . . . . Allies Corrupted . | . . . . Allies Melted . | . . . . Intel | -11 -10 -9 -8 ------- Run | Yrd Mat Mat Mat Active Infowar (turns) 453 | . . . 453 Terrain 272 | . . . 272 Machine Analysis 181 | . . . 181 Robot Analysis Total 4 | . 1 . 3 Derelict Logs Recovered . | . . . . Drone Launches . | . . . . Drone Recoveries . | . . . . Exploration | -11 -10 -9 -8 ------------- Run | Yrd Mat Mat Mat Turns Passed 1018 | 21 88 181 728 Spaces Moved 924 | 29 144 304 447 Core 92 | 29 62 . 1 Treads . | . . . . Legs 158 | . . . 158 Wheels . | . . . . Hover 674 | . 82 304 288 Flight . | . . . . Fastest Speed 38 | 50 50 48 38 Average Speed 63 | 51 53 48 78 Slowest Speed 300 | 100 60 112 300 Overloaded Moves . | . . . . Propulsion Burnouts . | . . . . Robots Hopped . | . . . . Potential Cave-ins . | . . . . Cave-ins Triggered . | . . . . Exploration Rate (%) 32 | 3 38 48 41 Regions Visited 3 Branch Regions . Pre-discovered Areas . | . . . . Known Exits Taken . | . . . . Unknown Exits Taken 3 | 1 1 1 . Scrap Searched . | . . . . Spaces Dug . | . . . . Terrain Destroyed . | . . . . Melee . | . . . . Projectile . | . . . . AOE . | . . . . Terrain Rammed . | . . . . Walls Destroyed . | . . . . Machines Disabled . | . . . . Actions | -11 -10 -9 -8 --------- Run | Yrd Mat Mat Mat Total 1165 | 34 153 326 652 Wait 82 | . . 6 76 Move 921 | 28 143 303 447 Hop . | . . . . Pick Up 21 | 4 5 3 9 Fast Attach 24 | 1 3 2 18 Attach 14 | . 2 4 8 Detach 6 | 1 . . 5 Swap 1 | . . 1 . Drop 7 | . . 2 5 Fire . | . . . . Melee 89 | . . 5 84 Ram . | . . . . Kick . | . . . . Crush . | . . . . Escape Stasis . | . . . . Rewire . | . . . . Trap . | . . . . Miscellaneous . | . . . . Route ------- -11/Scrapyard -10/Materials -9/Materials (discovered 3 exits: *Mat x2 / [*Min]) -8/Materials History --------- Turn | Location | Event 5 | -11/Scrapyard | Discovered new exit (range 16) 22 | -11/Scrapyard | Entered Materials 105 | -10/Materials | Discovered new exit (range 7) 110 | -10/Materials | Entered another Materials area 110 | -9/Materials | Evolved 2 slots: Propulsion x2 190 | -9/Materials | Discovered new exit (range 15) 211 | -9/Materials | Discovered new exit (range 16) 272 | -9/Materials | Discovered new exit (range 14) 291 | -9/Materials | Entered another Materials area 291 | -8/Materials | Evolved 2 slots: Utility x2 334 | -8/Materials | Build established: Mutant 419 | -8/Materials | Lost 4 parts (3n1u) 470 | -8/Materials | Lost 3 parts (1p1n1w) 527 | -8/Materials | Core integrity fell below 50% 602 | -8/Materials | Lost 3 parts (1p1n1u) 721 | -8/Materials | Core integrity fell below 20% 772 | -8/Materials | System corruption reached 10% 1019 | -8/Materials | Destroyed by Y-45 Defender with Beam Rifle Last Messages --------------- 00965_ H-55 Commando destroyed. 00965_ K-01 Serf collects debris. 00967_ >> Machine Analyzer network decryption results: 00967_ Terminal x1 00968_ K-01 Serf collects debris. 00969_ Acquired Aerolev Unit. 00971_ Reflective Plating destroyed. 00972_ K-01 Serf collects debris. 00977_ >> Machine Analyzer network decryption results: 00977_ Repair Station x1 00979_ System corrupted: Substantial component data lost. 00982_ Acquired System Shield. 00991_ W-25 Informer sends out distress signal. 01004_ T-07 Excavator is excavating. 01007_ >> Machine Analyzer network decryption results: 01007_ Scanalyzer x1 01008_ 5RJ%YAAR#LCJR6%R7L|C9LDD 01009_ Connecting with Garrison Access... >>Seal Access door sealed. Map ----- +----------------------------------------------------+ | ?#???? ?????????????????????????????????? | | !#?# ?????????????????????????????????? | | !?# ?????????????????????????????????? | | !?# ?????????????????????????????????? | | !?# ##+#?????????????????????????????? | | !?# #?????????????????????????????? | | !#?# #????????????????????????""???? | | ###??# #????????????????????????"T???? | | ?????# #????????? ??????""??????""???? | | ?????# #????????? ??????"""??????????? | | ?????# #????????? #??????S"??????????? | | ?????# ########?? +??????????????????? | | ?????# #! #?? #"""???????????????? | | ?##### # """ #?? #"""???????????????? | | ?# ## # G" #?? #"""???????????????? | | ### ## # """ #?# #??????????????????? | | + #?# #??????????????????? | | # ! #?# #??????????????????? | | ########## #??????????????????? | | uu k #??????????????????? | | ###############u #??????????????????? | | ??????????????#Y #????????????#?????? | | ??????????????# ########### #?????? | | ??????????????# k w #?????? | | ??????????????+ k +?????? | | ??????????????# @ #?????? | | ??????????????# ##?????? | | ??????????????####### ######### #??????? | | ????????????????????# #????????????????? | | ????????????????????# #????????????????? | | ????????????????????# #????????????????? | | ????????????????????# #????????????????? | | ????????????????????# #????????????????? | | ????????????????????# #????????????????? | | ????????????????????+ +????????????????? | | ????????????????????# #????????????????? | | ????????????????????# #????????????????? | | ????????????????????# ????????????????? | | ????????????????????? ?????????????????? | | ?????????????????????##?????????????????? | | ????????????????????????????????????????? | | ????????????????????????????????????????? | | ????????????????????????????????????????? | | ????????????????????????????????????????? | | ????????????????????????????????????????? | | ????????????????????????????????????????? | | ????????????????????????????????????????? | | ????????????????????????????????????????? | | ????????????????????????????????????????? | | | +----------------------------------------------------+ Best States ------------- Heat Dissipation 31 Energy Generation 10 Energy Capacity 250 Matter Stores 300 Matter Capacity 300 Sight Range 16 Terrain Scan Range 14 Terrain Scan Density 110 Armor Coverage 300 Resistance: TH 10 Core Shielding 20 Evasion (%) 57 Defensive Hacking 10 Item Schematics ----------------- None Robot Schematics ------------------ None Fabricated ------------ Nothing Repaired ---------- Nothing Studied --------- None Alien Tech Used ----------------- None Achievements -------------- None Challenges ------------ None Game ------ Seed ClaymoresIonRipper Manual? 0 Play Time 00:15:24 Cumulative 275.9 hours Start 2025.11.16 @ 15:56:13 End 2025.11.16 @ 16:07:50 Sessions 1 Manual Loads 0 Difficulty Rogue Special Mode None Game No. 291 Rogue 287 Adventurer 3 Explorer 1 Win Type - Total 1 Types 1/0/0/0/0/0/0/0/0/0 Lore% 78 Gallery% 76 Achievement% 60 Wizard Run 0 Options --------- Layout 0 ASCII 0 Keyboard 0 Movement Mouse Keybinds 0 Fullscreen 2 Font 18/SmallcapsGlow Map View 76x50 Zoom Use 0% Tactical HUD 1 Map Filters NONE Filters NONE Steam 1 RUN: 9eacf100-f591-421e-bc80-3756a1f198ec